bitfinex-derivatives/quotes_BTCF0:USTF0_20210707
["timestamp","ask_amount","ask_price","bid_price","bid_amount"]
[1625636523431,11.03923907,34755.0,34754.0,0.24534593]
[1625636523795,10.36179388,34755.0,34754.0,0.24534593]
[1625636524215,5.33329388,34755.0,34754.0,0.24534593]
[1625636524754,5.33329388,34755.0,34754.0,0.24057544]
[1625636524934,5.67427388,34755.0,34754.0,0.24057544]
[1625636525055,5.67427388,34755.0,34752.0,4.1352]
[1625636525296,0.01247241,34754.0,34752.0,4.1352]
[1625636525416,5.313465,34753.0,34752.0,4.1352]
[1625636525716,5.32593743,34753.0,34752.0,4.1399707]
[1625636526017,5.32593743,34753.0,34752.0,4.1352]
[1625636527104,5.313465,34753.0,34752.0,4.1352]
[1625636527398,3.79163195,34753.0,34752.0,4.1352]
[1625636530822,3.79163195,34753.0,34752.0,4.2226]
[1625636531063,3.79163195,34753.0,34752.0,4.90032374]
[1625636531242,3.79163195,34753.0,34752.0,4.81292374]
[1625636532325,3.79163195,34753.0,34752.0,4.89942374]
[1625636532443,3.79163195,34753.0,34752.0,4.81292374]
[1625636532684,3.79163195,34753.0,34752.0,4.1352]
[1625636533588,3.79163195,34753.0,34751.0,0.67772504]
[1625636533889,3.5352048,34752.0,34751.0,0.67772504]
[1625636534070,2.18848416,34752.0,34751.0,0.67772504]
[1625636534307,2.18848416,34752.0,34750.0,1.01658756]
[1625636534308,3.53431204,34752.0,34750.0,0.67767115]
[1625636534549,2.18606138,34751.0,34750.0,0.67767115]
[1625636535032,0.24057544,34753.0,34750.0,0.67767115]
[1625636535155,0.24057544,34753.0,34750.0,0.68246785]
[1625636535454,0.48115088,34753.0,34750.0,0.67767115]
[1625636535571,0.48115088,34753.0,34751.0,0.0865]
[1625636535932,2.18589344,34752.0,34751.0,0.0865]
[1625636536353,2.18589344,34752.0,34750.0,0.67767115]
[1625636536596,2.18582368,34751.0,34750.0,0.67767115]
[1625636536834,2.18582368,34751.0,34749.0,0.67745824]
[1625636537076,0.80775088,34753.0,34750.0,0.00479677]
[1625636537195,0.75075088,34753.0,34750.0,0.00479677]
[1625636537377,3.5300496,34751.0,34750.0,0.00479677]
[1625636538097,3.5300496,34751.0,34749.0,0.67745824]
[1625636538460,2.18486748,34750.0,34749.0,0.67745824]
[1625636538942,2.18486748,34750.0,34749.0,0.68225499]
[1625636539364,2.18486748,34750.0,34749.0,0.00479675]
[1625636540144,3.52876583,34750.0,34749.0,0.00479675]
[1625636540324,2.18486748,34750.0,34749.0,0.00479675]
[1625636540864,2.18486748,34750.0,34749.0,0.68216479]
[1625636541405,2.18486748,34750.0,34749.0,0.00479675]
[1625636547232,2.85625169,34750.0,34748.0,0.00479527]
[1625636547475,2.85320467,34749.0,34748.0,0.00479527]
[1625636547655,3.09378011,34749.0,34747.0,0.91782233]
[1625636547833,3.09378011,34749.0,34748.0,0.00479527]
[1625636547955,1.41538494,34749.0,34748.0,0.68204351]
[1625636548133,3.0939025,34749.0,34748.0,0.00479527]
[1625636548613,3.10630677,34749.0,34748.0,0.00479527]
[1625636551563,3.34688221,34749.0,34748.0,0.00479527]
[1625636552106,2.17207271,34749.0,34748.0,0.00479527]
[1625636552525,2.17207271,34749.0,34747.0,0.00478359]
[1625636552765,2.17207271,34749.0,34748.0,0.00478365]
[1625636552946,0.49355515,34749.0,34748.0,0.00478365]
[1625636553126,3.34109516,34749.0,34747.0,0.00478365]
[1625636553366,2.85992094,34748.0,34747.0,0.00478365]
[1625636553669,2.85992094,34748.0,34745.0,1.0158293]
[1625636553670,2.85992094,34748.0,34745.0,0.67724735]
[1625636553848,2.84516625,34746.0,34743.0,0.67731539]
[1625636554028,2.84358252,34744.0,34742.0,0.6773509]
[1625636554210,3.10644252,34744.0,34742.0,0.6773509]
[1625636554386,1.68510416,34743.0,34742.0,0.6773509]
[1625636554568,2.85584334,34743.0,34741.0,0.67735726]
[1625636554686,2.85584334,34743.0,34742.0,0.00478436]
[1625636554808,1.18318041,34743.0,34742.0,0.00478436]
[1625636554987,1.67151552,34743.0,34742.0,0.00478436]
[1625636555108,6.69071552,34743.0,34742.0,0.00478436]
[1625636555588,7.1718664,34743.0,34742.0,0.00478436]
[1625636556188,8.34173844,34743.0,34742.0,0.00478436]
[1625636556369,7.1718664,34743.0,34742.0,0.00478436]
[1625636556612,8.34174299,34743.0,34742.0,0.00478436]
[1625636557093,7.1718664,34743.0,34742.0,0.00478436]
[1625636557812,8.34136494,34743.0,34742.0,0.00478436]
[1625636558053,7.1718664,34743.0,34742.0,0.00478436]
[1625636558174,7.1718664,34743.0,34741.0,0.68189316]
[1625636558356,8.34138042,34743.0,34742.0,0.00478442]
[1625636558716,8.34138042,34743.0,34741.0,0.68193416]
[1625636559017,1.67064933,34742.0,34741.0,0.00478442]
[1625636559197,1.67064933,34742.0,34740.0,0.67701459]
[1625636559497,0.66830981,34741.0,34740.0,0.67701459]
[1625636559617,0.90888525,34741.0,34740.0,0.67701459]
[1625636559740,0.90888525,34741.0,34740.0,0.68179898]
[1625636560163,1.91102629,34741.0,34740.0,0.68179898]
[1625636561120,0.90888525,34741.0,34740.0,0.68179898]
[1625636562259,1.91090668,34741.0,34740.0,0.68179898]
[1625636562499,1.91090668,34741.0,34740.0,0.67701459]
[1625636562679,1.91090668,34741.0,34740.0,0.6817991]
[1625636562921,0.24057544,34741.0,34740.0,0.6817991]
[1625636563101,0.90857819,34741.0,34740.0,0.00478451]
[1625636563219,1.91047489,34741.0,34740.0,0.00478451]
[1625636566883,2.14777489,34741.0,34740.0,0.00478451]
[1625636567844,0.47787544,34741.0,34740.0,0.00478451]
[1625636568085,2.14368534,34741.0,34740.0,0.00478451]
[1625636569706,2.14368534,34741.0,34740.0,0.68213034]
[1625636569828,0.47787544,34741.0,34740.0,0.68213034]
[1625636569947,2.13426514,34741.0,34740.0,0.00478451]
[1625636573682,3.29381577,34741.0,34740.0,0.00478451]
[1625636574821,3.29381577,34741.0,34739.0,0.00478264]
[1625636575058,1.65615013,34740.0,34739.0,0.00478264]
[1625636575303,2.81526023,34740.0,34739.0,0.00478264]
[1625636575720,3.05583567,34740.0,34738.0,0.00478262]
[1625636575840,3.05583567,34740.0,34738.0,0.68248663]
[1625636575961,3.05583567,34740.0,34739.0,0.00478276]
[1625636576450,3.05583567,34740.0,34738.0,0.68239654]
[1625636576689,1.6544423,34739.0,34737.0,0.67761644]
[1625636576929,1.65441747,34738.0,34737.0,0.67761644]
[1625636577289,1.65441747,34738.0,34737.0,0.68239914]
[1625636577409,1.65441747,34738.0,34737.0,1.6988261]
[1625636578070,1.65441747,34738.0,34737.0,0.68239914]
[1625636581015,1.65441747,34738.0,34737.0,1.69903397]
[1625636582577,1.65441747,34738.0,34737.0,0.68239914]
[1625636582758,1.65441747,34738.0,34734.0,1.18607907]
[1625636582886,1.65441747,34738.0,34719.0,2.03326136]
[1625636582887,1.65441747,34738.0,34732.0,1.01675951]
[1625636582888,4.2350435,34738.0,34732.0,1.01675951]
[1625636583121,4.2350435,34738.0,34726.0,1.01688069]
[1625636583122,3.46990027,34733.0,34726.0,1.01688069]
[1625636583244,3.82898027,34733.0,34726.0,1.01688069]
[1625636583360,3.82898027,34733.0,34723.0,1.01627191]
[1625636583361,3.5842,34726.0,34723.0,1.01627191]
[1625636583483,3.92477,34726.0,34723.0,1.01627191]
[1625636583601,3.92477,34726.0,34722.0,1.01634435]
[1625636583602,0.99024147,34725.0,34722.0,1.01634435]
[1625636583721,0.99024147,34725.0,34724.0,0.00477927]
[1625636583722,1.00270657,34725.0,34724.0,0.00477927]
[1625636583844,0.0124651,34725.0,34724.0,0.00477927]
[1625636583962,0.0124651,34725.0,34723.0,0.00477933]
[1625636584086,1.00237792,34725.0,34723.0,0.00477933]
[1625636584326,0.0124651,34725.0,34724.0,0.00477949]
[1625636584623,3.46217376,34725.0,34724.0,0.00477949]
[1625636584748,2.14327397,34725.0,34724.0,0.00477949]
[1625636584863,2.15574052,34725.0,34719.0,0.00478005]
[1625636585043,0.9880958,34722.0,34717.0,1.01541063]
[1625636585284,0.9880958,34722.0,34716.0,1.0154157]
[1625636585404,1.0450958,34722.0,34716.0,1.0154157]
[1625636585644,1.0450958,34722.0,34717.0,0.00478216]
[1625636585825,0.72172632,34718.0,34717.0,0.00478216]
[1625636585945,0.99675632,34718.0,34717.0,0.00478216]
[1625636586905,0.99675632,34718.0,34714.0,1.01449823]
[1625636587508,0.99675632,34718.0,34715.0,1.01444455]
[1625636588648,0.99675632,34718.0,34711.0,1.35266431]
[1625636588649,0.99675632,34718.0,34714.0,1.01384203]
[1625636589129,0.99675632,34718.0,34713.0,1.01385141]
[1625636589369,0.99675632,34718.0,34710.0,1.35178937]
[1625636589370,0.99675632,34718.0,34714.0,1.01385354]
[1625636589612,0.99675632,34718.0,34713.0,1.01385915]
[1625636589851,0.24057544,34714.0,34713.0,1.01385915]
[1625636590753,0.24057544,34714.0,34712.0,1.01387919]
[1625636590875,0.24057544,34714.0,34711.0,1.0131614]
[1625636591775,0.24057544,34712.0,34711.0,1.0131614]
[1625636593041,0.24057544,34712.0,34710.0,1.01264099]
[1625636593883,0.24057544,34711.0,34710.0,1.01264099]
[1625636594002,0.51690544,34711.0,34710.0,1.01264099]
[1625636595386,0.51690544,34711.0,34709.0,1.01219624]
[1625636596046,0.51690544,34711.0,34710.0,1.01219254]
[1625636596407,0.24057544,34711.0,34710.0,1.09799254]
[1625636596709,0.24057544,34711.0,34710.0,2.27844739]
[1625636596827,0.24057544,34712.0,34710.0,2.27844739]
[1625636596946,0.24057544,34712.0,34711.0,1.09761958]
[1625636597066,0.24057544,34712.0,34711.0,1.35682958]
[1625636597306,0.24057544,34712.0,34711.0,5.76662958]
[1625636597486,0.24057544,34712.0,34711.0,5.68082958]
[1625636597906,0.24057544,34712.0,34711.0,6.16198046]
[1625636598147,0.24057544,34712.0,34711.0,1.75218046]
[1625636598508,0.24057544,34718.0,34711.0,1.75218046]
[1625636598630,1.2258121,34726.0,34711.0,1.83798046]
[1625636598752,1.2258121,34726.0,34711.0,1.75218046]
[1625636598870,0.24057544,34726.0,34714.0,1.01148833]
[1625636599114,0.24057544,34726.0,34718.0,4.553]
[1625636599291,0.24057544,34726.0,34718.0,4.86234]
[1625636599591,0.24057544,34726.0,34718.0,0.30934]
[1625636599952,0.24057544,34726.0,34725.0,0.75089088]
[1625636606513,0.24057544,34726.0,34725.0,0.49615088]
[1625636608136,0.48849544,34726.0,34718.0,0.0714]
[1625636608254,4.01899418,34726.0,34718.0,0.0714]
[1625636608496,1.14452419,34719.0,34718.0,0.0714]
[1625636608614,3.43357257,34719.0,34718.0,0.0714]
[1625636608793,5.3185825,34719.0,34718.0,0.0545]
[1625636608914,5.2333825,34719.0,34718.0,0.0421]
[1625636609101,5.30286146,34719.0,34706.0,0.9668]
[1625636609336,0.97901265,34710.0,34706.0,0.9668]
[1625636609454,1.23417265,34710.0,34694.0,1.01181964]
[1625636609576,0.057,34709.0,34694.0,1.01181964]
[1625636609695,4.71879,34701.0,34694.0,1.01181964]
[1625636609817,4.71879,34701.0,34695.0,0.0047612]
[1625636610117,4.71879,34701.0,34700.0,0.24057544]
[1625636610417,4.71879,34701.0,34700.0,0.24533675]
[1625636611017,0.21019,34701.0,34700.0,0.24057544]
[1625636611135,0.24057544,34706.0,34700.0,0.24057544]
[1625636611499,0.24057544,34706.0,34700.0,4.03377544]
[1625636612039,0.24057544,34706.0,34705.0,0.24057544]
[1625636612159,0.24057544,34706.0,34705.0,0.55310544]
[1625636613545,0.48965671,34710.0,34705.0,0.55310544]
[1625636613665,0.24057544,34712.0,34705.0,0.55310544]
[1625636614025,0.24057544,34712.0,34711.0,0.24057544]
[1625636624535,0.24057544,34712.0,34705.0,0.24057544]
[1625636626156,0.24057544,34706.0,34705.0,0.24057544]
[1625636630179,0.29757544,34712.0,34705.0,0.24057544]
[1625636630180,0.24057544,34712.0,34705.0,0.24057544]
[1625636630297,0.24057544,34712.0,34705.0,0.45168544]
[1625636632169,0.24057544,34712.0,34711.0,0.24057544]
[1625636634876,0.73093553,34712.0,34711.0,0.24057544]
[1625636636801,0.74345791,34712.0,34711.0,0.24534113]
[1625636637161,1.72770839,34712.0,34711.0,0.24534113]
[1625636638966,1.72770839,34712.0,34711.0,0.00476569]
[1625636639453,1.72770839,34712.0,34706.0,0.00476588]
[1625636639877,0.49233295,34709.0,34706.0,0.00476588]
[1625636640238,0.24057544,34707.0,34706.0,0.51270006]
[1625636640535,0.24057544,34707.0,34706.0,0.00476588]
[1625636640777,0.24057544,34707.0,34706.0,0.51269815]
[1625636643059,0.24057544,34707.0,34706.0,1.18997099]
[1625636643299,0.24057544,34707.0,34706.0,2.20628231]
[1625636644805,0.32909189,34708.0,34706.0,2.20628231]
[1625636644926,0.32949608,34710.0,34707.0,0.0851]
[1625636645167,0.32962074,34711.0,34709.0,2.20215797]
[1625636645348,0.82400546,34712.0,34710.0,2.2021492]
[1625636645466,0.82400546,34712.0,34710.0,2.20691407]
[1625636645587,0.82400546,34712.0,34711.0,5.56027275]
[1625636645707,0.82400546,34712.0,34711.0,5.56503883]
[1625636645829,0.32965671,34712.0,34711.0,5.56503883]
[1625636646067,0.32965671,34712.0,34711.0,6.58149329]
[1625636646308,0.32965671,34712.0,34711.0,7.06264417]
[1625636646547,0.32965671,34712.0,34711.0,6.13218971]
[1625636646668,0.32965671,34712.0,34711.0,6.04618971]
[1625636647267,0.49373121,34712.0,34711.0,5.36860528]
[1625636647567,1.1518342,34712.0,34711.0,0.99410528]
[1625636647688,1.1518342,34712.0,34711.0,0.75352984]
[1625636647808,2.15104522,34712.0,34711.0,0.00476608]
[1625636647992,3.30176864,34712.0,34711.0,0.00476608]
[1625636648288,3.30176864,34712.0,34711.0,0.24534152]
[1625636648470,3.30176864,34712.0,34711.0,0.24057544]
[1625636648588,3.30176864,34712.0,34711.0,0.24534222]
[1625636648950,2.15104522,34712.0,34711.0,0.24534222]
[1625636649430,2.15104522,34712.0,34711.0,0.59070222]
[1625636650392,3.30127482,34712.0,34711.0,0.59070222]
[1625636650693,2.15104522,34712.0,34711.0,0.59070222]
[1625636652978,2.15104522,34712.0,34711.0,0.24534222]
[1625636652979,3.29711319,34712.0,34711.0,0.24534222]
[1625636655504,4.61036026,34712.0,34711.0,0.24534222]
[1625636655747,3.29711319,34712.0,34711.0,0.24534222]
[1625636655925,4.61056397,34712.0,34711.0,0.24534222]
[1625636657008,3.29711319,34712.0,34711.0,0.24534222]
[1625636660616,4.60807331,34712.0,34711.0,0.24534222]
[1625636664338,4.84864875,34712.0,34711.0,0.24534222]
[1625636666680,6.32597721,34712.0,34711.0,0.58544835]
[1625636666859,6.55531721,34712.0,34711.0,0.58544835]
[1625636668910,6.55531721,34712.0,34711.0,0.24534222]
[1625636670107,6.55531721,34712.0,34708.0,0.34015664]
[1625636670350,6.06785342,34709.0,34707.0,0.85039764]
[1625636670469,0.48115088,34708.0,34707.0,0.85039764]
[1625636670590,6.54883878,34708.0,34707.0,0.85039764]
[1625636670772,6.56140818,34708.0,34707.0,0.85039764]
[1625636670951,6.56140818,34708.0,34707.0,0.51498641]
[1625636671613,6.56140818,34708.0,34707.0,0.8552412]
[1625636671911,6.56140818,34708.0,34707.0,0.51498641]
[1625636672339,5.08555943,34708.0,34707.0,0.51498641]
[1625636672581,6.56243607,34708.0,34707.0,1.19545331]
[1625636674266,5.08555943,34708.0,34707.0,0.51498641]
[1625636674384,5.08555943,34708.0,34707.0,1.19536272]
[1625636677627,5.08555943,34708.0,34707.0,0.51498641]
[1625636677745,5.08555943,34708.0,34707.0,1.19529067]
[1625636679431,5.08555943,34708.0,34707.0,0.51498641]
[1625636679913,5.08555943,34708.0,34707.0,1.19519473]
[1625636680094,5.08555943,34708.0,34707.0,0.51498641]
[1625636680392,5.08555943,34708.0,34707.0,1.19519078]
[1625636681592,5.08555943,34708.0,34707.0,0.51498641]
[1625636681835,5.08555943,34708.0,34707.0,1.19516922]
[1625636682075,5.08555943,34708.0,34707.0,0.85506547]
[1625636682558,3.77367566,34708.0,34707.0,3.40567173]
[1625636682677,3.76110626,34708.0,34707.0,3.40567173]
[1625636682920,3.76110626,34708.0,34707.0,3.49307173]
[1625636683101,3.76110626,34708.0,34707.0,3.40567173]
[1625636683700,3.76110626,34708.0,34707.0,2.21538954]
[1625636683941,3.76110626,34708.0,34707.0,3.40569299]
[1625636684842,5.07435848,34708.0,34707.0,2.21538954]
[1625636685142,3.76110626,34708.0,34707.0,2.21538954]
[1625636685502,5.07409395,34708.0,34707.0,2.21538954]
[1625636685802,5.07409395,34708.0,34707.0,1.19039621]
[1625636685922,5.08666434,34708.0,34707.0,1.19514671]
[1625636687063,5.08666434,34708.0,34707.0,0.51498546]
[1625636688083,5.08666434,34708.0,34707.0,0.85503108]
[1625636688926,5.08666434,34708.0,34707.0,0.34479612]
[1625636689168,5.08666434,34708.0,34707.0,0.85485492]
[1625636689473,5.08666434,34708.0,34707.0,0.34479612]
[1625636689646,5.08666434,34708.0,34707.0,0.51481592]
[1625636690548,5.08666434,34708.0,34707.0,2.21491347]
[1625636690669,5.08666434,34708.0,34707.0,2.30051347]
[1625636690967,5.08666434,34708.0,34707.0,2.21491347]
[1625636691390,5.08666434,34708.0,34707.0,0.51478811]
[1625636691689,5.08666434,34708.0,34707.0,0.51477675]
[1625636694214,5.08666434,34708.0,34707.0,0.344768]
[1625636694756,5.08666434,34708.0,34707.0,0.85474527]
[1625636695477,5.08666434,34708.0,34707.0,0.51472777]
[1625636695897,5.08666434,34708.0,34707.0,1.19470213]
[1625636698720,5.08666434,34708.0,34707.0,1.44346213]
[1625636699622,4.8460889,34708.0,34707.0,2.46337692]
[1625636700523,4.8460889,34708.0,34707.0,2.54947692]
[1625636700645,4.8460889,34708.0,34707.0,2.79005236]
[1625636700764,4.8460889,34708.0,34707.0,4.06385548]
[1625636700885,2.37261202,34708.0,34707.0,5.25377071]
[1625636701126,2.38518222,34708.0,34707.0,5.25377071]
[1625636701787,3.54023126,34708.0,34707.0,3.89386759]
[1625636708522,3.54023126,34708.0,34707.0,3.97976759]
[1625636708883,3.28708562,34708.0,34707.0,3.89386759]
[1625636709065,0.70571886,34710.0,34707.0,5.25440217]
[1625636709364,0.24057544,34717.0,34707.0,5.25440217]
[1625636709365,0.24057544,34717.0,34709.0,1.53046847]
[1625636709545,0.24057544,34717.0,34714.0,4.0691]
[1625636709662,0.24057544,34717.0,34714.0,4.3624]
[1625636709904,0.24057544,34717.0,34714.0,4.36714879]
[1625636710027,0.24057544,34717.0,34714.0,5.89612948]
[1625636710746,0.24057544,34721.0,34714.0,6.37728036]
[1625636711348,0.24057544,34721.0,34714.0,4.84829967]
[1625636711588,0.24057544,34721.0,34714.0,0.77919967]
[1625636716882,0.24057544,34721.0,34714.0,0.77445088]
[1625636717902,0.24057544,34721.0,34714.0,0.77920484]
[1625636718684,0.19987544,34715.0,34714.0,0.77920484]
[1625636718805,0.24057544,34721.0,34714.0,0.77920484]
[1625636719403,0.24057544,34721.0,34715.0,0.00475377]
[1625636720728,0.24057544,34721.0,34720.0,0.24057544]
[1625636723490,0.24057544,34725.0,34720.0,0.24057544]
[1625636723792,0.24057544,34725.0,34724.0,0.33875804]
[1625636723912,0.24057544,34725.0,34724.0,0.57910804]
[1625636724032,0.24057544,34725.0,34724.0,0.24035]
[1625636724755,0.24057544,34725.0,34724.0,0.72150088]
[1625636724992,0.24057544,34732.0,34724.0,5.59650088]
[1625636725174,0.24057544,34732.0,34731.0,0.08467284]
[1625636725292,0.24057544,34732.0,34731.0,0.34422284]
[1625636725412,0.24057544,34732.0,34731.0,0.51356315]
[1625636725532,0.24057544,34735.0,34731.0,0.51356315]
[1625636725713,0.24057544,34735.0,34733.0,0.59263029]
[1625636725834,1.32198542,34738.0,34733.0,0.59263029]
[1625636725955,0.24057544,34739.0,34734.0,0.08456381]
[1625636726253,0.24057544,34739.0,34735.0,0.2536899]
[1625636726375,0.24057544,34739.0,34736.0,0.08456157]
[1625636726794,0.24057544,34739.0,34738.0,0.48115088]
[1625636726972,0.24057544,34739.0,34738.0,0.70829088]
[1625636729739,1.15315679,34745.0,34738.0,0.70829088]
[1625636729980,1.152952,34749.0,34738.0,1.29873266]
[1625636730280,1.15307828,34750.0,34739.0,0.25304436]
[1625636730760,1.15307828,34750.0,34749.0,0.48115088]
[1625636730882,1.15274779,34751.0,34749.0,0.74521088]
[1625636731726,1.15275818,34750.0,34749.0,0.74521088]
[1625636732207,1.38999135,34752.0,34749.0,0.74521088]
[1625636732986,1.14975394,34751.0,34749.0,0.74521088]
[1625636734191,1.38938305,34752.0,34749.0,0.74521088]
[1625636735450,0.24057544,34752.0,34749.0,0.74521088]
[1625636749410,0.24057544,34752.0,34749.0,0.48115088]
[1625636753016,0.01255966,34751.0,34749.0,0.48115088]
[1625636761613,0.01255966,34751.0,34750.0,0.00474738]
[1625636761793,0.01255966,34751.0,34750.0,0.28233738]
[1625636761915,0.01255966,34751.0,34750.0,0.27759]
[1625636766129,1.16432627,34751.0,34750.0,0.27759]
[1625636766612,1.16432627,34751.0,34750.0,0.33399]
[1625636767332,0.01255966,34751.0,34750.0,0.33399]
[1625636767752,1.16573496,34751.0,34750.0,0.33399]
[1625636769558,0.01255966,34751.0,34750.0,0.33399]
[1625636769797,1.16607224,34751.0,34750.0,0.33399]
[1625636770038,0.01255966,34751.0,34750.0,0.33399]
[1625636770157,0.01255966,34751.0,34750.0,0.33873627]
[1625636772085,0.01257796,34754.0,34750.0,0.33873627]
[1625636772322,0.01257801,34751.0,34750.0,0.33873627]
[1625636772562,0.01257805,34753.0,34750.0,0.33399]
[1625636772862,4.7591,34754.0,34750.0,0.33399]
[1625636772863,5.92711961,34754.0,34750.0,0.33399]
[1625636772984,5.92711961,34754.0,34753.0,0.24057544]
[1625636773161,5.91454142,34754.0,34753.0,0.24057544]
[1625636773343,5.92711969,34754.0,34753.0,0.24057544]
[1625636777851,7.25025544,34754.0,34753.0,0.24057544]
[1625636782240,8.74092204,34754.0,34753.0,0.24057544]
[1625636782957,8.74092204,34754.0,34753.0,0.58411544]
[1625636787345,8.74092204,34754.0,34753.0,0.24057544]
[1625636788122,8.72834377,34754.0,34753.0,0.24057544]
[1625636788243,8.7409198,34754.0,34753.0,0.24057544]
[1625636793171,3.9818198,34754.0,34753.0,0.24057544]
[1625636793351,2.4911532,34754.0,34753.0,0.92433515]
[1625636793652,2.47857717,34754.0,34753.0,0.92433515]
[1625636793772,1.57041255,34755.0,34753.0,3.13112704]
[1625636793951,0.01255672,34754.0,34753.0,3.13112704]
[1625636794191,1.34155959,34754.0,34753.0,1.93810829]
[1625636794431,1.34155959,34754.0,34753.0,0.92433494]
[1625636798577,1.34155959,34754.0,34753.0,0.24532142]
[1625636798997,1.34155959,34754.0,34753.0,0.58470678]
[1625636799238,1.34155959,34754.0,34753.0,1.43303405]
[1625636801282,1.34155959,34754.0,34753.0,0.75434112]
[1625636801823,1.34155959,34754.0,34753.0,0.75428478]
[1625636802002,1.34155959,34754.0,34753.0,0.83910776]
[1625636802423,1.34155959,34754.0,34753.0,0.75428478]
[1625636802662,1.34155959,34754.0,34753.0,0.83910887]
[1625636803024,1.34155959,34754.0,34753.0,0.83436289]
[1625636803324,1.34155959,34754.0,34753.0,0.49980035]
[1625636803805,1.34155959,34754.0,34753.0,0.75428616]
[1625636805133,1.34155959,34754.0,34753.0,1.09357839]
[1625636805795,1.34155959,34754.0,34753.0,0.75427263]
[1625636807654,1.34155959,34754.0,34753.0,0.83909399]
[1625636807775,1.34155959,34754.0,34753.0,0.83434762]
[1625636807895,1.34155959,34754.0,34753.0,0.49503772]
[1625636808077,1.34155959,34754.0,34753.0,0.24057544]
[1625636808315,2.8337148,34754.0,34753.0,0.24057544]
[1625636809215,3.07429024,34754.0,34750.0,0.14122873]
[1625636809395,5.3107,34751.0,34750.0,0.14122873]
[1625636809517,6.63668307,34751.0,34750.0,0.14122873]
[1625636809815,6.64923649,34751.0,34750.0,0.14122873]
[1625636810115,6.64923649,34751.0,34750.0,0.0564]
[1625636810665,8.14043291,34751.0,34750.0,0.0564]
[1625636811262,8.38100835,34751.0,34750.0,0.0564]
[1625636822438,8.38100835,34751.0,34748.0,0.25459337]
[1625636822677,2.82365289,34749.0,34747.0,0.59426907]
[1625636822976,0.01254479,34748.0,34747.0,0.59426907]
[1625636823096,2.83630289,34748.0,34747.0,0.59426907]
[1625636823278,3.31745377,34748.0,34747.0,0.25469997]
[1625636823520,3.31745377,34748.0,34746.0,0.08489843]
[1625636823758,2.82284927,34747.0,34746.0,0.25469497]
[1625636824000,2.83539436,34747.0,34746.0,0.25469497]
[1625636824238,1.34095451,34747.0,34746.0,0.5093825]
[1625636825500,1.34095451,34747.0,34746.0,1.18853487]
[1625636827365,1.34095451,34747.0,34746.0,0.5093825]
[1625636827787,1.34095451,34747.0,34746.0,1.18854021]
[1625636831154,1.34095451,34747.0,34746.0,1.41374021]
[1625636831812,1.34095451,34747.0,34746.0,1.41849541]
[1625636833132,1.34095451,34747.0,34746.0,1.19329541]
[1625636837458,1.62104451,34747.0,34746.0,0.85365667]
[1625636837639,1.62104451,34747.0,34746.0,0.51403535]
[1625636840223,1.34095451,34747.0,34746.0,0.51403535]
[1625636840343,1.34095451,34747.0,34746.0,0.85351563]
[1625636840584,1.34095451,34747.0,34746.0,1.19298305]
[1625636840826,1.34095451,34747.0,34746.0,0.51399666]
[1625636841608,1.32840942,34747.0,34746.0,0.50924146]
[1625636841844,1.32840942,34747.0,34746.0,0.51399686]
[1625636841845,1.34093701,34747.0,34746.0,0.51399686]
[1625636841966,1.34093701,34747.0,34746.0,1.19295365]
[1625636843829,1.34093701,34747.0,34746.0,0.51399686]
[1625636844430,1.34093701,34747.0,34746.0,0.59872025]
[1625636844673,1.34093701,34747.0,34746.0,0.51386813]
[1625636845156,2.84427122,34747.0,34746.0,0.25931006]
[1625636845454,2.84427122,34747.0,34746.0,0.59871159]
[1625636846239,1.34093701,34747.0,34746.0,0.51386117]
[1625636847800,2.84772558,34747.0,34746.0,0.51386117]
[1625636848041,2.84772558,34747.0,34746.0,0.25930576]
[1625636848282,2.84772558,34747.0,34746.0,0.59869034]
[1625636849310,1.34093701,34747.0,34746.0,0.51384422]
[1625636850270,1.34093701,34747.0,34746.0,0.85319176]
[1625636850512,1.34093701,34747.0,34746.0,0.51380718]
[1625636850931,1.34093701,34747.0,34746.0,1.19254549]
[1625636851174,0.01252759,34747.0,34746.0,2.21060975]
[1625636851414,0.01252759,34747.0,34746.0,3.39832666]
[1625636851592,0.01252759,34747.0,34746.0,3.6389021]
[1625636854657,0.01252759,34747.0,34746.0,4.99625392]
[1625636854837,0.01252759,34747.0,34746.0,3.6389021]
[1625636855076,0.01252759,34747.0,34746.0,4.99640591]
[1625636855439,0.01252759,34747.0,34746.0,3.6389021]
[1625636856759,1.3563337,34747.0,34746.0,2.45118519]
[1625636856999,1.6601137,34747.0,34746.0,2.45118519]
[1625636857241,1.6601137,34747.0,34746.0,1.43312093]
[1625636857542,3.17107557,34747.0,34746.0,0.75438262]
[1625636857721,1.6601137,34747.0,34746.0,1.43333235]
[1625636860485,1.3563337,34747.0,34746.0,1.43333235]
[1625636860667,1.3563337,34747.0,34746.0,2.45190527]
[1625636861206,1.3563337,34747.0,34746.0,3.64049972]
[1625636868305,1.3563337,34747.0,34746.0,4.99999032]
[1625636870650,6.4651337,34747.0,34746.0,4.99999032]
[1625636871434,6.4651337,34747.0,34746.0,3.64049972]
[1625636871975,6.4651337,34747.0,34746.0,4.9998806]
[1625636872876,6.45260611,34747.0,34746.0,4.9998806]
[1625636875221,6.46508878,34747.0,34746.0,4.9998806]
[1625636876662,6.45260611,34747.0,34746.0,5.3220706]
[1625636876965,5.1088,34747.0,34746.0,5.3220706]
[1625636877204,5.12128271,34747.0,34746.0,5.3220706]
[1625636877447,5.1088,34747.0,34746.0,5.3220706]
[1625636890066,0.48115088,34748.0,34746.0,5.3220706]
[1625636890307,0.48115088,34748.0,34747.0,4.75397316]
[1625636891148,0.48115088,34748.0,34747.0,4.75873658]
[1625636891388,0.49364897,34748.0,34747.0,4.75873658]
[1625636891988,0.48115088,34748.0,34747.0,4.75873658]
[1625636893069,0.48115088,34748.0,34747.0,0.00476342]
[1625636893311,0.48115088,34748.0,34747.0,4.75833117]
[1625636895595,0.24057544,34748.0,34747.0,4.75833117]
[1625636895714,1.35181952,34750.0,34747.0,4.75833117]
[1625636895837,1.35252841,34752.0,34749.0,5.23438873]
[1625636896133,0.24057544,34754.0,34751.0,4.75297172]
[1625636896374,0.24057544,34754.0,34753.0,4.75074841]
[1625636896554,0.24057544,34754.0,34753.0,5.02327841]
[1625636896854,0.24057544,34754.0,34753.0,5.02804109]
[1625636897813,0.48115088,34754.0,34753.0,5.02804109]
[1625636897936,0.48115088,34754.0,34753.0,3.6706844]
[1625636898537,0.48115088,34754.0,34753.0,8.6194844]
[1625636898956,0.48115088,34754.0,34753.0,8.6908844]
[1625636899078,0.48115088,34754.0,34753.0,3.7420844]
[1625636899859,0.48115088,34754.0,34753.0,3.98265984]
[1625636900100,0.48115088,34754.0,34753.0,0.58926812]
[1625636900460,0.48115088,34754.0,34753.0,3.98200352]
[1625636901004,0.48115088,34754.0,34753.0,8.79970352]
[1625636902147,0.48115088,34754.0,34753.0,8.88580352]
[1625636902388,0.48115088,34754.0,34753.0,10.24258307]
[1625636903348,0.24057544,34754.0,34753.0,10.24258307]
[1625636903948,0.24057544,34754.0,34753.0,10.29248307]
[1625636904251,1.35255791,34760.0,34753.0,10.29248307]
[1625636904612,0.24057544,34761.0,34759.0,2.20383949]
[1625636904613,1.59332207,34761.0,34759.0,2.20383949]